{"text_format":"3","workbook":"xlsx","n_sheets":2,"sheets":["Raspored zaposlenika","Postavljanje"],"not_rendered":{"defined_names":21},"read":"whole","date_system":"1900"}

{"sheet":"Raspored zaposlenika","index":0,"n_rows":296,"n_cols":21,"rows_kept":296,"merged":[[6,1,6,9],[66,1,66,9],[126,1,126,9],[186,1,186,9],[246,1,246,9]]}
["Raspored smjena zaposlenika"]
[]
[null,"UKUPNO:",null,{"$f":"SUM(4:4)","v":{"v":56,"d":"56.00"}}]
[null,"SATI:",null,{"$f":"UkupnoRadnihDana","v":{"v":8,"d":"8.00"}},{"v":8,"d":"8.00"},{"v":8,"d":"8.00"},{"v":8,"d":"8.00"},{"v":8,"d":"8.00"},{"v":8,"d":"8.00"},{"v":8,"d":"8.00"},{"v":0,"d":"0.00"},{"v":0,"d":"0.00"},{"v":0,"d":"0.00"},{"v":0,"d":"0.00"},{"v":0,"d":"0.00"},{"v":0,"d":"0.00"},{"v":0,"d":"0.00"},{"v":0,"d":"0.00"},{"v":0,"d":"0.00"},{"v":0,"d":"0.00"},{"v":0,"d":"0.00"}]
[null,"ZAPOSLENIK:",null,"Pavičić, A","Šokec, N","Sanković, B","Šokec, N","Abrus, L","Makovec, T","Salmre, I"]
[]
[null,"2012-07-16T09:00:00"]
[null,{"$f":"B7","v":41106.375},{"$nulls":5},"Godišnji odmor"]
[null,{"$f":"PrikazRazdoblja","v":":15"},null,"Recepcija",{"$nulls":3},"Godišnji odmor"]
[null,":30",null,"Recepcija",{"$nulls":3},"Godišnji odmor"]
[null,":45",null,"Recepcija","Poslovođa",null,"Služba za korisnike","Godišnji odmor"]
[null,"10:00 AM",null,"Recepcija","Poslovođa",null,"Služba za korisnike","Godišnji odmor"]
[null,":15",null,"Recepcija","Poslovođa",null,"Služba za korisnike","Godišnji odmor"]
[null,":30",null,"Recepcija","Poslovođa",null,"Služba za korisnike","Godišnji odmor","Računovodstvo"]
[null,":45",null,"Recepcija","Poslovođa",null,"Služba za korisnike","Godišnji odmor","Računovodstvo","Domar"]
[null,"11:00 AM",null,"Recepcija","Poslovođa",null,"Služba za korisnike","Godišnji odmor","Računovodstvo","Domar"]
[null,":15",null,"Recepcija","Poslovođa","Vodič","Služba za korisnike","Godišnji odmor","Računovodstvo","Domar"]
[null,":30",null,"Recepcija","Pauza","Vodič","Služba za korisnike","Godišnji odmor","Računovodstvo","Domar"]
[null,":45",null,"Ručak","Poslovođa","Vodič","Služba za korisnike","Godišnji odmor","Računovodstvo","Domar"]
[null,"12:00 PM",null,"Ručak","Poslovođa","Vodič","Služba za korisnike","Godišnji odmor","Računovodstvo","Domar"]
[null,":15",null,"Recepcija","Poslovođa","Vodič","Služba za korisnike","Godišnji odmor","Pauza","Domar"]
[null,":30",null,"Recepcija","Poslovođa","Pauza","Služba za korisnike","Godišnji odmor","Telefoni","Pauza"]
[null,":45",null,"Recepcija","Poslovođa","Vodič","Služba za korisnike","Godišnji odmor","Telefoni","Domar"]
[null,"1:00 PM",null,"Recepcija","Poslovođa","Vodič","Služba za korisnike","Godišnji odmor","Telefoni","Domar"]
[null,":15",null,"Recepcija","Poslovođa","Vodič","Ručak","Godišnji odmor","Telefoni","Domar"]
[null,":30",null,null,"Poslovođa","Vodič","Ručak","Godišnji odmor","Telefoni","Domar"]
[null,":45",null,null,"Poslovođa","Vodič","Ručak","Godišnji odmor","Ručak","Domar"]
[null,"2:00 PM",null,"Blagajnik","Ručak","Vodič","Ručak","Godišnji odmor","Ručak","Domar"]
[null,":15",null,"Blagajnik","Ručak","Vodič","Služba za korisnike","Godišnji odmor","Telefoni","Domar"]
[null,":30",null,"Blagajnik","Ručak","Ručak","Služba za korisnike","Godišnji odmor","Telefoni","Ručak"]
[null,":45",null,"Blagajnik","Ručak","Ručak","Služba za korisnike","Godišnji odmor","Telefoni","Ručak"]
[null,"3:00 PM",null,"Blagajnik","Zaštita","Ručak","Služba za korisnike","Godišnji odmor","Telefoni","Ručak"]
[null,":15",null,"Blagajnik","Zaštita","Ručak","Služba za korisnike","Godišnji odmor","Telefoni","Ručak"]
[null,":30",null,"Blagajnik","Zaštita","Vodič","Služba za korisnike","Godišnji odmor","Telefoni","Zatvori"]
[null,":45",null,"Blagajnik","Zaštita","Vodič","Služba za korisnike","Godišnji odmor","Telefoni","Zatvori"]
[null,"4:00 PM",null,"Blagajnik","Zaštita","Vodič","Služba za korisnike","Godišnji odmor","Pauza","Zatvori"]
[null,":15",null,"Pauza","Zaštita","Vodič","Pauza","Godišnji odmor","Telefoni","Zatvori"]
[null,":30",null,"Blagajnik","Zaštita","Vodič","Služba za korisnike","Godišnji odmor","Telefoni","Zatvori"]
[null,":45",null,"Blagajnik","Zaštita","Vodič","Služba za korisnike","Godišnji odmor","Telefoni","Zatvori"]
[null,"5:00 PM",null,"Blagajnik","Zaštita","Vodič","Služba za korisnike",null,"Telefoni","Zatvori"]
[null,":15",null,"Blagajnik","Zaštita","Vodič","Služba za korisnike",null,"Telefoni","Zatvori"]
[null,":30",null,"Blagajnik","Zaštita","Vodič","Služba za korisnike",null,"Telefoni","Zatvori"]
[null,":45",null,"Blagajnik","Zaštita","Vodič","Služba za korisnike",null,"Telefoni","Zatvori"]
[null,"6:00 PM",null,"Blagajnik","Zaštita","Vodič","Služba za korisnike",null,"Telefoni","Zatvori"]
[null,":15",null,"Blagajnik","Zaštita","Vodič","Služba za korisnike",null,"Telefoni","Zatvori"]
[null,":30",null,null,"Zaštita","Vodič","Služba za korisnike",null,"Telefoni","Zatvori"]
[null,":45",null,null,"Zaštita","Pauza","Služba za korisnike",null,"Telefoni","Pauza"]
[null,"7:00 PM",{"$nulls":3},"Vodič",null,null,"Telefoni","Zatvori"]
[null,":15",{"$nulls":3},"Vodič",null,null,"Telefoni","Zatvori"]
[null,":30",{"$nulls":3},"Vodič",{"$nulls":3},"Zatvori"]
[null,":45",{"$nulls":3},"Vodič",{"$nulls":3},"Zatvori"]
[null,"8:00 PM",{"$nulls":3},"Vodič",{"$nulls":3},"Zatvori"]
[null,":15",{"$nulls":3},"Vodič"]
[null,":30",{"$nulls":3},"Vodič"]
[null,":45"]
[null,"9:00 PM"]
[]
[]
[]
[]
["Raspored zaposlenika"]
[]
[null,"UKUPNO:",null,{"$f":"SUM(64:64)","v":{"v":56,"d":"56.00"}}]
[null,"SATI:",null,{"$f":"UkupnoRadnihDana","v":{"v":8,"d":"8.00"}},{"v":8,"d":"8.00"},{"v":8,"d":"8.00"},{"v":8,"d":"8.00"},{"v":8,"d":"8.00"},{"v":8,"d":"8.00"},{"v":8,"d":"8.00"},{"v":0,"d":"0.00"},{"v":0,"d":"0.00"},{"v":0,"d":"0.00"},{"v":0,"d":"0.00"},{"v":0,"d":"0.00"},{"v":0,"d":"0.00"},{"v":0,"d":"0.00"},{"v":0,"d":"0.00"},{"v":0,"d":"0.00"},{"v":0,"d":"0.00"},{"v":0,"d":"0.00"}]
[null,"ZAPOSLENIK:",null,"Pavičić, A","Šokec, N","Sanković, B","Jurić-Sedić, V","Abrus, L","Makovec, T","Salmre, I"]
[]
[null,{"$f":"B7+1","v":"2012-07-17T09:00:00"}]
[null,{"$f":"B67","v":41107.375},{"$nulls":5},"Godišnji odmor"]
[null,{"$f":"PrikazRazdoblja","v":":15"},null,"Recepcija",{"$nulls":3},"Godišnji odmor"]
[null,":30",null,"Recepcija",{"$nulls":3},"Godišnji odmor"]
[null,":45",null,"Recepcija","Poslovođa",null,"Služba za korisnike","Godišnji odmor"]
[null,"1:00 AM",null,"Recepcija","Poslovođa",null,"Služba za korisnike","Godišnji odmor"]
[null,":15",null,"Recepcija","Poslovođa",null,"Služba za korisnike","Godišnji odmor"]
[null,":30",null,"Recepcija","Poslovođa",null,"Služba za korisnike","Godišnji odmor","Računovodstvo"]
[null,":45",null,"Recepcija","Poslovođa",null,"Služba za korisnike","Godišnji odmor","Računovodstvo","Domar"]
[null,"2:00 AM",null,"Recepcija","Poslovođa",null,"Služba za korisnike","Godišnji odmor","Računovodstvo","Domar"]
[null,":15",null,"Recepcija","Poslovođa","Vodič","Služba za korisnike","Godišnji odmor","Računovodstvo","Domar"]
[null,":30",null,"Recepcija","Pauza","Vodič","Služba za korisnike","Godišnji odmor","Računovodstvo","Domar"]
[null,":45",null,"Ručak","Poslovođa","Vodič","Služba za korisnike","Godišnji odmor","Računovodstvo","Domar"]
[null,"3:00 AM",null,"Ručak","Poslovođa","Vodič","Služba za korisnike","Godišnji odmor","Računovodstvo","Domar"]
[null,":15",null,"Recepcija","Poslovođa","Vodič","Služba za korisnike","Godišnji odmor","Pauza","Domar"]
[null,":30",null,"Recepcija","Poslovođa","Pauza","Služba za korisnike","Godišnji odmor","Telefoni","Pauza"]
[null,":45",null,"Recepcija","Poslovođa","Vodič","Služba za korisnike","Godišnji odmor","Telefoni","Domar"]
[null,"4:00 AM",null,"Recepcija","Poslovođa","Vodič","Služba za korisnike","Godišnji odmor","Telefoni","Domar"]
[null,":15",null,"Recepcija","Poslovođa","Vodič","Ručak","Godišnji odmor","Telefoni","Domar"]
[null,":30",null,null,"Poslovođa","Vodič","Ručak","Godišnji odmor","Telefoni","Domar"]
[null,":45",null,null,"Poslovođa","Vodič","Ručak","Godišnji odmor","Ručak","Domar"]
[null,"5:00 AM",null,"Blagajnik","Ručak","Vodič","Ručak","Godišnji odmor","Ručak","Domar"]
[null,":15",null,"Blagajnik","Ručak","Vodič","Služba za korisnike","Godišnji odmor","Telefoni","Domar"]
[null,":30",null,"Blagajnik","Ručak","Ručak","Služba za korisnike","Godišnji odmor","Telefoni","Ručak"]
[null,":45",null,"Blagajnik","Ručak","Ručak","Služba za korisnike","Godišnji odmor","Telefoni","Ručak"]
[null,"6:00 AM",null,"Blagajnik","Zaštita","Ručak","Služba za korisnike","Godišnji odmor","Telefoni","Ručak"]
[null,":15",null,"Blagajnik","Zaštita","Ručak","Služba za korisnike","Godišnji odmor","Telefoni","Ručak"]
[null,":30",null,"Blagajnik","Zaštita","Vodič","Služba za korisnike","Godišnji odmor","Telefoni","Zatvori"]
[null,":45",null,"Blagajnik","Zaštita","Vodič","Služba za korisnike","Godišnji odmor","Telefoni","Zatvori"]
[null,"7:00 AM",null,"Blagajnik","Zaštita","Vodič","Služba za korisnike","Godišnji odmor","Pauza","Zatvori"]
[null,":15",null,"Pauza","Zaštita","Vodič","Pauza","Godišnji odmor","Telefoni","Zatvori"]
[null,":30",null,"Blagajnik","Zaštita","Vodič","Služba za korisnike","Godišnji odmor","Telefoni","Zatvori"]
[null,":45",null,"Blagajnik","Zaštita","Vodič","Služba za korisnike","Godišnji odmor","Telefoni","Zatvori"]
[null,"8:00 AM",null,"Blagajnik","Zaštita","Vodič","Služba za korisnike",null,"Telefoni","Zatvori"]
[null,":15",null,"Blagajnik","Zaštita","Vodič","Služba za korisnike",null,"Telefoni","Zatvori"]
[null,":30",null,"Blagajnik","Zaštita","Vodič","Služba za korisnike",null,"Telefoni","Zatvori"]
[null,":45",null,"Blagajnik","Zaštita","Vodič","Služba za korisnike",null,"Telefoni","Zatvori"]
[null,"9:00 AM",null,"Blagajnik","Zaštita","Vodič","Služba za korisnike",null,"Telefoni","Zatvori"]
[null,":15",null,"Blagajnik","Zaštita","Vodič","Služba za korisnike",null,"Telefoni","Zatvori"]
[null,":30",null,null,"Zaštita","Vodič","Služba za korisnike",null,"Telefoni","Zatvori"]
[null,":45",null,null,"Zaštita","Pauza","Služba za korisnike",null,"Telefoni","Pauza"]
[null,"10:00 AM",{"$nulls":3},"Vodič",null,null,"Telefoni","Zatvori"]
[null,":15",{"$nulls":3},"Vodič",null,null,"Telefoni","Zatvori"]
[null,":30",{"$nulls":3},"Vodič",{"$nulls":3},"Zatvori"]
[null,":45",{"$nulls":3},"Vodič",{"$nulls":3},"Zatvori"]
[null,"11:00 AM",{"$nulls":3},"Vodič",{"$nulls":3},"Zatvori"]
[null,":15",{"$nulls":3},"Vodič"]
[null,":30",{"$nulls":3},"Vodič"]
[null,":45"]
[null,"12:00 PM"]
[]
[]
[]
[]
["Raspored zaposlenika"]
[]
[null,"UKUPNO:",null,{"$f":"SUM(124:124)","v":{"v":56,"d":"56.00"}}]
[null,"SATI:",null,{"$f":"UkupnoRadnihDana","v":{"v":8,"d":"8.00"}},{"v":8,"d":"8.00"},{"v":8,"d":"8.00"},{"v":8,"d":"8.00"},{"v":8,"d":"8.00"},{"v":8,"d":"8.00"},{"v":8,"d":"8.00"},{"v":0,"d":"0.00"},{"v":0,"d":"0.00"},{"v":0,"d":"0.00"},{"v":0,"d":"0.00"},{"v":0,"d":"0.00"},{"v":0,"d":"0.00"},{"v":0,"d":"0.00"},{"v":0,"d":"0.00"},{"v":0,"d":"0.00"},{"v":0,"d":"0.00"},{"v":0,"d":"0.00"}]
[null,"ZAPOSLENIK:",null,"Pavičić, A","Šokec, N","Sanković, B","Jurić-Sedić, V","Abrus, L","Makovec, T","Salmre, I"]
[]
[null,{"$f":"B67+1","v":"2012-07-18T09:00:00"}]
[null,{"$f":"B127","v":41108.375},{"$nulls":5},"Godišnji odmor"]
[null,{"$f":"PrikazRazdoblja","v":":15"},null,"Recepcija",{"$nulls":3},"Godišnji odmor"]
[null,":30",null,"Recepcija",{"$nulls":3},"Godišnji odmor"]
[null,":45",null,"Recepcija","Poslovođa",null,"Služba za korisnike","Godišnji odmor"]
[null,"4:00 PM",null,"Recepcija","Poslovođa",null,"Služba za korisnike","Godišnji odmor"]
[null,":15",null,"Recepcija","Poslovođa",null,"Služba za korisnike","Godišnji odmor"]
[null,":30",null,"Recepcija","Poslovođa",null,"Služba za korisnike","Godišnji odmor","Računovodstvo"]
[null,":45",null,"Recepcija","Poslovođa",null,"Služba za korisnike","Godišnji odmor","Računovodstvo","Domar"]
[null,"5:00 PM",null,"Recepcija","Poslovođa",null,"Služba za korisnike","Godišnji odmor","Računovodstvo","Domar"]
[null,":15",null,"Recepcija","Poslovođa","Vodič","Služba za korisnike","Godišnji odmor","Računovodstvo","Domar"]
[null,":30",null,"Recepcija","Pauza","Vodič","Služba za korisnike","Godišnji odmor","Računovodstvo","Domar"]
[null,":45",null,"Ručak","Poslovođa","Vodič","Služba za korisnike","Godišnji odmor","Računovodstvo","Domar"]
[null,"6:00 PM",null,"Ručak","Poslovođa","Vodič","Služba za korisnike","Godišnji odmor","Računovodstvo","Domar"]
[null,":15",null,"Recepcija","Poslovođa","Vodič","Služba za korisnike","Godišnji odmor","Pauza","Domar"]
[null,":30",null,"Recepcija","Poslovođa","Pauza","Služba za korisnike","Godišnji odmor","Telefoni","Pauza"]
[null,":45",null,"Recepcija","Poslovođa","Vodič","Služba za korisnike","Godišnji odmor","Telefoni","Domar"]
[null,"7:00 PM",null,"Recepcija","Poslovođa","Vodič","Služba za korisnike","Godišnji odmor","Telefoni","Domar"]
[null,":15",null,"Recepcija","Poslovođa","Vodič","Ručak","Godišnji odmor","Telefoni","Domar"]
[null,":30",null,null,"Poslovođa","Vodič","Ručak","Godišnji odmor","Telefoni","Domar"]
[null,":45",null,null,"Poslovođa","Vodič","Ručak","Godišnji odmor","Ručak","Domar"]
[null,"8:00 PM",null,"Blagajnik","Ručak","Vodič","Ručak","Godišnji odmor","Ručak","Domar"]
[null,":15",null,"Blagajnik","Ručak","Vodič","Služba za korisnike","Godišnji odmor","Telefoni","Domar"]
[null,":30",null,"Blagajnik","Ručak","Ručak","Služba za korisnike","Godišnji odmor","Telefoni","Ručak"]
[null,":45",null,"Blagajnik","Ručak","Ručak","Služba za korisnike","Godišnji odmor","Telefoni","Ručak"]
[null,"9:00 PM",null,"Blagajnik","Zaštita","Ručak","Služba za korisnike","Godišnji odmor","Telefoni","Ručak"]
[null,":15",null,"Blagajnik","Zaštita","Ručak","Služba za korisnike","Godišnji odmor","Telefoni","Ručak"]
[null,":30",null,"Blagajnik","Zaštita","Vodič","Služba za korisnike","Godišnji odmor","Telefoni","Zatvori"]
[null,":45",null,"Blagajnik","Zaštita","Vodič","Služba za korisnike","Godišnji odmor","Telefoni","Zatvori"]
[null,"10:00 PM",null,"Blagajnik","Zaštita","Vodič","Služba za korisnike","Godišnji odmor","Pauza","Zatvori"]
[null,":15",null,"Pauza","Zaštita","Vodič","Pauza","Godišnji odmor","Telefoni","Zatvori"]
[null,":30",null,"Blagajnik","Zaštita","Vodič","Služba za korisnike","Godišnji odmor","Telefoni","Zatvori"]
[null,":45",null,"Blagajnik","Zaštita","Vodič","Služba za korisnike","Godišnji odmor","Telefoni","Zatvori"]
[null,"11:00 PM",null,"Blagajnik","Zaštita","Vodič","Služba za korisnike",null,"Telefoni","Zatvori"]
[null,":15",null,"Blagajnik","Zaštita","Vodič","Služba za korisnike",null,"Telefoni","Zatvori"]
[null,":30",null,"Blagajnik","Zaštita","Vodič","Služba za korisnike",null,"Telefoni","Zatvori"]
[null,":45",null,"Blagajnik","Zaštita","Vodič","Služba za korisnike",null,"Telefoni","Zatvori"]
[null,"12:00 AM",null,"Blagajnik","Zaštita","Vodič","Služba za korisnike",null,"Telefoni","Zatvori"]
[null,":15",null,"Blagajnik","Zaštita","Vodič","Služba za korisnike",null,"Telefoni","Zatvori"]
[null,":30",null,null,"Zaštita","Vodič","Služba za korisnike",null,"Telefoni","Zatvori"]
[null,":45",null,null,"Zaštita","Pauza","Služba za korisnike",null,"Telefoni","Pauza"]
[null,"1:00 AM",{"$nulls":3},"Vodič",null,null,"Telefoni","Zatvori"]
[null,":15",{"$nulls":3},"Vodič",null,null,"Telefoni","Zatvori"]
[null,":30",{"$nulls":3},"Vodič",{"$nulls":3},"Zatvori"]
[null,":45",{"$nulls":3},"Vodič",{"$nulls":3},"Zatvori"]
[null,"2:00 AM",{"$nulls":3},"Vodič",{"$nulls":3},"Zatvori"]
[null,":15",{"$nulls":3},"Vodič"]
[null,":30",{"$nulls":3},"Vodič"]
[null,":45"]
[null,"3:00 AM"]
[]
[]
[]
[]
["Raspored zaposlenika"]
[]
[null,"UKUPNO:",null,{"$f":"SUM(184:184)","v":{"v":56,"d":"56.00"}}]
[null,"SATI:",null,{"$f":"UkupnoRadnihDana","v":{"v":8,"d":"8.00"}},{"v":8,"d":"8.00"},{"v":8,"d":"8.00"},{"v":8,"d":"8.00"},{"v":8,"d":"8.00"},{"v":8,"d":"8.00"},{"v":8,"d":"8.00"},{"v":0,"d":"0.00"},{"v":0,"d":"0.00"},{"v":0,"d":"0.00"},{"v":0,"d":"0.00"},{"v":0,"d":"0.00"},{"v":0,"d":"0.00"},{"v":0,"d":"0.00"},{"v":0,"d":"0.00"},{"v":0,"d":"0.00"},{"v":0,"d":"0.00"},{"v":0,"d":"0.00"}]
[null,"ZAPOSLENIK:",null,"Pavičić, A","Šokec, N","Sanković, B","Jurić-Sedić, V","Abrus, L","Makovec, T","Salmre, I"]
[]
[null,{"$f":"B127+1","v":"2012-07-19T09:00:00"}]
[null,{"$f":"B187","v":41109.375},{"$nulls":5},"Godišnji odmor"]
[null,{"$f":"PrikazRazdoblja","v":":15"},null,"Recepcija",{"$nulls":3},"Godišnji odmor"]
[null,":30",null,"Recepcija",{"$nulls":3},"Godišnji odmor"]
[null,":45",null,"Recepcija","Poslovođa",null,"Služba za korisnike","Godišnji odmor"]
[null,"7:00 AM",null,"Recepcija","Poslovođa",null,"Služba za korisnike","Godišnji odmor"]
[null,":15",null,"Recepcija","Poslovođa",null,"Služba za korisnike","Godišnji odmor"]
[null,":30",null,"Recepcija","Poslovođa",null,"Služba za korisnike","Godišnji odmor","Računovodstvo"]
[null,":45",null,"Recepcija","Poslovođa",null,"Služba za korisnike","Godišnji odmor","Računovodstvo","Domar"]
[null,"8:00 AM",null,"Recepcija","Poslovođa",null,"Služba za korisnike","Godišnji odmor","Računovodstvo","Domar"]
[null,":15",null,"Recepcija","Poslovođa","Vodič","Služba za korisnike","Godišnji odmor","Računovodstvo","Domar"]
[null,":30",null,"Recepcija","Pauza","Vodič","Služba za korisnike","Godišnji odmor","Računovodstvo","Domar"]
[null,":45",null,"Ručak","Poslovođa","Vodič","Služba za korisnike","Godišnji odmor","Računovodstvo","Domar"]
[null,"9:00 AM",null,"Ručak","Poslovođa","Vodič","Služba za korisnike","Godišnji odmor","Računovodstvo","Domar"]
[null,":15",null,"Recepcija","Poslovođa","Vodič","Služba za korisnike","Godišnji odmor","Pauza","Domar"]
[null,":30",null,"Recepcija","Poslovođa","Pauza","Služba za korisnike","Godišnji odmor","Telefoni","Pauza"]
[null,":45",null,"Recepcija","Poslovođa","Vodič","Služba za korisnike","Godišnji odmor","Telefoni","Domar"]
[null,"10:00 AM",null,"Recepcija","Poslovođa","Vodič","Služba za korisnike","Godišnji odmor","Telefoni","Domar"]
[null,":15",null,"Recepcija","Poslovođa","Vodič","Ručak","Godišnji odmor","Telefoni","Domar"]
[null,":30",null,null,"Poslovođa","Vodič","Ručak","Godišnji odmor","Telefoni","Domar"]
[null,":45",null,null,"Poslovođa","Vodič","Ručak","Godišnji odmor","Ručak","Domar"]
[null,"11:00 AM",null,"Blagajnik","Ručak","Vodič","Ručak","Godišnji odmor","Ručak","Domar"]
[null,":15",null,"Blagajnik","Ručak","Vodič","Služba za korisnike","Godišnji odmor","Telefoni","Domar"]
[null,":30",null,"Blagajnik","Ručak","Ručak","Služba za korisnike","Godišnji odmor","Telefoni","Ručak"]
[null,":45",null,"Blagajnik","Ručak","Ručak","Služba za korisnike","Godišnji odmor","Telefoni","Ručak"]
[null,"12:00 PM",null,"Blagajnik","Zaštita","Ručak","Služba za korisnike","Godišnji odmor","Telefoni","Ručak"]
[null,":15",null,"Blagajnik","Zaštita","Ručak","Služba za korisnike","Godišnji odmor","Telefoni","Ručak"]
[null,":30",null,"Blagajnik","Zaštita","Vodič","Služba za korisnike","Godišnji odmor","Telefoni","Zatvori"]
[null,":45",null,"Blagajnik","Zaštita","Vodič","Služba za korisnike","Godišnji odmor","Telefoni","Zatvori"]
[null,"1:00 PM",null,"Blagajnik","Zaštita","Vodič","Služba za korisnike","Godišnji odmor","Pauza","Zatvori"]
[null,":15",null,"Pauza","Zaštita","Vodič","Pauza","Godišnji odmor","Telefoni","Zatvori"]
[null,":30",null,"Blagajnik","Zaštita","Vodič","Služba za korisnike","Godišnji odmor","Telefoni","Zatvori"]
[null,":45",null,"Blagajnik","Zaštita","Vodič","Služba za korisnike","Godišnji odmor","Telefoni","Zatvori"]
[null,"2:00 PM",null,"Blagajnik","Zaštita","Vodič","Služba za korisnike",null,"Telefoni","Zatvori"]
[null,":15",null,"Blagajnik","Zaštita","Vodič","Služba za korisnike",null,"Telefoni","Zatvori"]
[null,":30",null,"Blagajnik","Zaštita","Vodič","Služba za korisnike",null,"Telefoni","Zatvori"]
[null,":45",null,"Blagajnik","Zaštita","Vodič","Služba za korisnike",null,"Telefoni","Zatvori"]
[null,"3:00 PM",null,"Blagajnik","Zaštita","Vodič","Služba za korisnike",null,"Telefoni","Zatvori"]
[null,":15",null,"Blagajnik","Zaštita","Vodič","Služba za korisnike",null,"Telefoni","Zatvori"]
[null,":30",null,null,"Zaštita","Vodič","Služba za korisnike",null,"Telefoni","Zatvori"]
[null,":45",null,null,"Zaštita","Pauza","Služba za korisnike",null,"Telefoni","Pauza"]
[null,"4:00 PM",{"$nulls":3},"Vodič",null,null,"Telefoni","Zatvori"]
[null,":15",{"$nulls":3},"Vodič",null,null,"Telefoni","Zatvori"]
[null,":30",{"$nulls":3},"Vodič",{"$nulls":3},"Zatvori"]
[null,":45",{"$nulls":3},"Vodič",{"$nulls":3},"Zatvori"]
[null,"5:00 PM",{"$nulls":3},"Vodič",{"$nulls":3},"Zatvori"]
[null,":15",{"$nulls":3},"Vodič"]
[null,":30",{"$nulls":3},"Vodič"]
[null,":45"]
[null,"6:00 PM"]
[]
[]
[]
[]
["Raspored zaposlenika"]
[]
[null,"UKUPNO:",null,{"$f":"SUM(244:244)","v":{"v":56,"d":"56.00"}}]
[null,"SATI:",null,{"$f":"UkupnoRadnihDana","v":{"v":8,"d":"8.00"}},{"v":8,"d":"8.00"},{"v":8,"d":"8.00"},{"v":8,"d":"8.00"},{"v":8,"d":"8.00"},{"v":8,"d":"8.00"},{"v":8,"d":"8.00"},{"v":0,"d":"0.00"},{"v":0,"d":"0.00"},{"v":0,"d":"0.00"},{"v":0,"d":"0.00"},{"v":0,"d":"0.00"},{"v":0,"d":"0.00"},{"v":0,"d":"0.00"},{"v":0,"d":"0.00"},{"v":0,"d":"0.00"},{"v":0,"d":"0.00"},{"v":0,"d":"0.00"}]
[null,"ZAPOSLENIK:",null,"Pavičić, A","Šokec, N","Sanković, B","Jurić-Sedić, V","Abrus, L","Makovec, T","Salmre, I"]
[]
[null,{"$f":"B187+1","v":"2012-07-20T09:00:00"}]
[null,{"$f":"B247","v":41110.375},{"$nulls":5},"Godišnji odmor"]
[null,{"$f":"PrikazRazdoblja","v":":15"},null,"Recepcija",{"$nulls":3},"Godišnji odmor"]
[null,":30",null,"Recepcija",{"$nulls":3},"Godišnji odmor"]
[null,":45",null,"Recepcija","Poslovođa",null,"Služba za korisnike","Godišnji odmor"]
[null,"10:00 PM",null,"Recepcija","Poslovođa",null,"Služba za korisnike","Godišnji odmor"]
[null,":15",null,"Recepcija","Poslovođa",null,"Služba za korisnike","Godišnji odmor"]
[null,":30",null,"Recepcija","Poslovođa",null,"Služba za korisnike","Godišnji odmor","Računovodstvo"]
[null,":45",null,"Recepcija","Poslovođa",null,"Služba za korisnike","Godišnji odmor","Računovodstvo","Domar"]
[null,"11:00 PM",null,"Recepcija","Poslovođa",null,"Služba za korisnike","Godišnji odmor","Računovodstvo","Domar"]
[null,":15",null,"Recepcija","Poslovođa","Vodič","Služba za korisnike","Godišnji odmor","Računovodstvo","Domar"]
[null,":30",null,"Recepcija","Pauza","Vodič","Služba za korisnike","Godišnji odmor","Računovodstvo","Domar"]
[null,":45",null,"Ručak","Poslovođa","Vodič","Služba za korisnike","Godišnji odmor","Računovodstvo","Domar"]
[null,"12:00 AM",null,"Ručak","Poslovođa","Vodič","Služba za korisnike","Godišnji odmor","Računovodstvo","Domar"]
[null,":15",null,"Recepcija","Poslovođa","Vodič","Služba za korisnike","Godišnji odmor","Pauza","Domar"]
[null,":30",null,"Recepcija","Poslovođa","Pauza","Služba za korisnike","Godišnji odmor","Telefoni","Pauza"]
[null,":45",null,"Recepcija","Poslovođa","Vodič","Služba za korisnike","Godišnji odmor","Telefoni","Domar"]
[null,"1:00 AM",null,"Recepcija","Poslovođa","Vodič","Služba za korisnike","Godišnji odmor","Telefoni","Domar"]
[null,":15",null,"Recepcija","Poslovođa","Vodič","Ručak","Godišnji odmor","Telefoni","Domar"]
[null,":30",null,null,"Poslovođa","Vodič","Ručak","Godišnji odmor","Telefoni","Domar"]
[null,":45",null,null,"Poslovođa","Vodič","Ručak","Godišnji odmor","Ručak","Domar"]
[null,"2:00 AM",null,"Blagajnik","Ručak","Vodič","Ručak","Godišnji odmor","Ručak","Domar"]
[null,":15",null,"Blagajnik","Ručak","Vodič","Služba za korisnike","Godišnji odmor","Telefoni","Domar"]
[null,":30",null,"Blagajnik","Ručak","Ručak","Služba za korisnike","Godišnji odmor","Telefoni","Ručak"]
[null,":45",null,"Blagajnik","Ručak","Ručak","Služba za korisnike","Godišnji odmor","Telefoni","Ručak"]
[null,"3:00 AM",null,"Blagajnik","Zaštita","Ručak","Služba za korisnike","Godišnji odmor","Telefoni","Ručak"]
[null,":15",null,"Blagajnik","Zaštita","Ručak","Služba za korisnike","Godišnji odmor","Telefoni","Ručak"]
[null,":30",null,"Blagajnik","Zaštita","Vodič","Služba za korisnike","Godišnji odmor","Telefoni","Zatvori"]
[null,":45",null,"Blagajnik","Zaštita","Vodič","Služba za korisnike","Godišnji odmor","Telefoni","Zatvori"]
[null,"4:00 AM",null,"Blagajnik","Zaštita","Vodič","Služba za korisnike","Godišnji odmor","Pauza","Zatvori"]
[null,":15",null,"Pauza","Zaštita","Vodič","Pauza","Godišnji odmor","Telefoni","Zatvori"]
[null,":30",null,"Blagajnik","Zaštita","Vodič","Služba za korisnike","Godišnji odmor","Telefoni","Zatvori"]
[null,":45",null,"Blagajnik","Zaštita","Vodič","Služba za korisnike","Godišnji odmor","Telefoni","Zatvori"]
[null,"5:00 AM",null,"Blagajnik","Zaštita","Vodič","Služba za korisnike",null,"Telefoni","Zatvori"]
[null,":15",null,"Blagajnik","Zaštita","Vodič","Služba za korisnike",null,"Telefoni","Zatvori"]
[null,":30",null,"Blagajnik","Zaštita","Vodič","Služba za korisnike",null,"Telefoni","Zatvori"]
[null,":45",null,"Blagajnik","Zaštita","Vodič","Služba za korisnike",null,"Telefoni","Zatvori"]
[null,"6:00 AM",null,"Blagajnik","Zaštita","Vodič","Služba za korisnike",null,"Telefoni","Zatvori"]
[null,":15",null,"Blagajnik","Zaštita","Vodič","Služba za korisnike",null,"Telefoni","Zatvori"]
[null,":30",null,null,"Zaštita","Vodič","Služba za korisnike",null,"Telefoni","Zatvori"]
[null,":45",null,null,"Zaštita","Pauza","Služba za korisnike",null,"Telefoni","Pauza"]
[null,"7:00 AM",{"$nulls":3},"Vodič",null,null,"Telefoni","Zatvori"]
[null,":15",{"$nulls":3},"Vodič",null,null,"Telefoni","Zatvori"]
[null,":30",{"$nulls":3},"Vodič",{"$nulls":3},"Zatvori"]
[null,":45",{"$nulls":3},"Vodič",{"$nulls":3},"Zatvori"]
[null,"8:00 AM",{"$nulls":3},"Vodič",{"$nulls":3},"Zatvori"]
[null,":15",{"$nulls":3},"Vodič"]
[null,":30",{"$nulls":3},"Vodič"]
[null,":45"]
[null,"9:00 AM"]

{"sheet":"Postavljanje","index":1,"n_rows":26,"n_cols":7,"rows_kept":26}
[null,"Postavljanje"]
[]
[]
[null,"POMACI PO\nUNOSU SATA",4]
[]
[]
[]
[]
[]
[null,"Zaposlenici",null,"Položaj/slobodno","Boja","Plaćeno","Cijeli dan"]
[null,"Pavičić, A",null,"Ručak",1,false,false]
[null,"Abrus, L",null,"Pauza",1,false,false]
[null,"Makovec, T",null,"Slobodno",1,false,true]
[null,"Berka, M",null,"Bolovanje",1,false,true]
[null,"Šokec, N",null,"Slobodan dan",1,true,true]
[null,"Jurić-Sedić, V",null,"Godišnji odmor",1,true,true]
[null,"Salmre, I",null,"Recepcija",2,true,false]
[null,"Sanković, B",null,"Blagajnik",3,true,false]
[{"$nulls":3},"Poslovođa",4,true,false]
[{"$nulls":3},"Vodič",5,true,false]
[{"$nulls":3},"Služba za korisnike",6,true,false]
[{"$nulls":3},"Telefoni",7,true,false]
[{"$nulls":3},"Zaštita",8,true,false]
[{"$nulls":3},"Domar",9,true,false]
[{"$nulls":3},"Računovodstvo",10,true,false]
[{"$nulls":3},"Zatvori",11,true,false]